bitfinex/quotes_BTCUSD_20250221
["timestamp","ask_amount","ask_price","bid_price","bid_amount"]
[1740161400924,0.0078512,97151.0,97150.0,0.27282162]
[1740161401069,0.0148512,97151.0,97150.0,0.27158654]
[1740161401275,0.0078512,97151.0,97150.0,0.27158654]
[1740161401899,0.0148512,97151.0,97150.0,0.27158654]
[1740161402102,0.0078512,97151.0,97150.0,0.27158654]
[1740161402532,0.0118512,97151.0,97150.0,0.27158654]
[1740161402735,0.0078512,97151.0,97150.0,0.10264569]
[1740161402954,0.0078512,97151.0,97147.0,0.06125587]
[1740161402955,0.154403,97148.0,97147.0,0.06125587]
[1740161403114,0.2137162,97151.0,97136.0,0.08225587]
[1740161403115,0.154419,97138.0,97136.0,0.08225587]
[1740161403317,0.154419,97138.0,97119.0,1.01462871]
[1740161403730,0.154419,97138.0,97114.0,0.08225587]
[1740161404103,0.16302008,97150.0,97114.0,0.08225587]
[1740161404104,0.0038512,97151.0,97126.0,0.1561386]
[1740161404303,0.16302008,97150.0,97126.0,0.0017016]
[1740161404573,0.161419,97138.0,97126.0,0.0017016]
[1740161405006,0.234519,97138.0,97126.0,0.0017016]
[1740161405208,0.241519,97138.0,97126.0,0.0017016]
[1740161405483,0.34953746,97138.0,97126.0,0.0017016]
[1740161405692,0.35653746,97138.0,97126.0,0.0017016]
[1740161406065,0.34253746,97138.0,97126.0,0.0017016]
[1740161406873,0.67003746,97138.0,97126.0,0.0017016]
[1740161407276,0.67703746,97138.0,97126.0,0.0017016]
[1740161407641,0.67648176,97138.0,97126.0,0.0017016]
[1740161407840,0.68348176,97138.0,97126.0,0.0017016]
[1740161408987,0.68348176,97138.0,97137.0,0.02286586]
[1740161409304,0.67703746,97138.0,97137.0,0.02286586]
[1740161409503,0.68468749,97138.0,97137.0,0.02103927]
[1740161409714,0.154436,97127.0,97126.0,0.0017016]
[1740161410822,0.161436,97127.0,97126.0,0.0017016]
[1740161411063,0.168436,97127.0,97126.0,0.0017016]
[1740161411651,0.27108169,97127.0,97126.0,0.0017016]
[1740161411880,0.23696,97112.0,97090.0,0.0017016]
[1740161412060,0.5426003,97112.0,97111.0,0.00053034]
[1740161412236,0.5426003,97112.0,97111.0,3.4e-07]
[1740161412454,0.154492,97092.0,97090.0,0.0017016]
[1740161412908,0.25713769,97092.0,97090.0,0.0017016]
[1740161413297,0.33733769,97092.0,97090.0,0.0017016]
[1740161414194,0.34378439,97092.0,97090.0,0.0017016]
[1740161414414,0.1679387,97092.0,97090.0,0.0017016]
[1740161414844,0.27058439,97092.0,97090.0,0.0017016]
[1740161415059,0.27758439,97092.0,97090.0,0.0017016]
[1740161415509,0.27058439,97092.0,97090.0,0.0017016]
[1740161415721,0.42058439,97092.0,97090.0,0.0017016]
[1740161416298,0.41358439,97092.0,97090.0,0.0017016]
[1740161416764,0.42058439,97092.0,97090.0,0.0017016]
[1740161417140,0.41358439,97092.0,97090.0,0.0017016]
[1740161417594,0.51078439,97092.0,97090.0,0.0017016]
[1740161417807,0.60643008,97092.0,97091.0,6e-07]
[1740161418009,0.60643008,97092.0,97071.0,0.0020976]
[1740161418010,0.154524,97072.0,97071.0,0.00048634]
[1740161419266,0.1679707,97072.0,97071.0,0.00092092]
[1740161420055,0.1749707,97072.0,97071.0,0.00092092]
[1740161420255,0.27761639,97072.0,97071.0,0.00092092]
[1740161420455,0.49991639,97072.0,97071.0,0.00092092]
[1740161420778,0.50691639,97072.0,97071.0,0.00092092]
[1740161421201,0.49991639,97072.0,97071.0,0.00092092]
[1740161421429,0.51484444,97072.0,97071.0,0.00092092]
[1740161421592,0.50784444,97072.0,97071.0,0.00092092]
[1740161422363,0.51484444,97072.0,97071.0,0.00092092]
[1740161422571,0.52184444,97072.0,97071.0,0.00092092]
[1740161422776,0.18289875,97072.0,97071.0,0.00092092]
[1740161422920,0.1609707,97072.0,97071.0,0.00092092]
[1740161423125,0.0134467,97072.0,97071.0,0.00092092]
[1740161423524,0.0064467,97072.0,97071.0,0.00092092]
[1740161423951,0.0134467,97072.0,97071.0,0.00092092]
[1740161424165,0.0204467,97072.0,97071.0,0.00092092]
[1740161424365,0.014,97072.0,97071.0,0.00092092]
[1740161424567,0.007,97072.0,97071.0,0.00092092]
[1740161424765,0.19284569,97072.0,97071.0,0.00092092]
[1740161424969,0.34284569,97072.0,97071.0,0.00092092]
[1740161425185,0.33584569,97072.0,97071.0,0.00092092]
[1740161425362,0.34284569,97072.0,97071.0,0.00092092]
[1740161425776,1.52602321,97072.0,97071.0,0.00092092]
[1740161425971,1.6286689,97072.0,97071.0,0.00092092]
[1740161426196,1.6356689,97072.0,97071.0,0.00092092]
[1740161426404,1.6356689,97072.0,97071.0,9.2e-07]
[1740161426405,0.74412321,97072.0,97071.0,9.2e-07]
[1740161426576,0.74412321,97072.0,97049.0,0.0016978]
[1740161426577,0.304559,97050.0,97049.0,0.0016978]
[1740161426778,0.80310469,97050.0,97049.0,0.0016978]
[1740161427247,0.90575038,97050.0,97049.0,8e-07]
[1740161427460,0.93353294,97050.0,97049.0,8e-07]
[1740161428077,0.83088725,97050.0,97049.0,8e-07]
[1740161428289,0.84766081,97050.0,97049.0,8e-07]
[1740161428690,0.86766081,97050.0,97049.0,8e-07]
[1740161428862,0.87466081,97050.0,97049.0,8e-07]
[1740161429075,0.88166081,97050.0,97049.0,8e-07]
[1740161429426,0.87466081,97050.0,97049.0,8e-07]
[1740161429983,0.88166081,97050.0,97049.0,8e-07]
[1740161430248,0.86166081,97050.0,97049.0,8e-07]
[1740161430417,0.86554081,97050.0,97049.0,8e-07]
[1740161430736,0.84554081,97050.0,97049.0,8e-07]
[1740161430938,0.68466081,97050.0,97049.0,8e-07]
[1740161431141,0.61626081,97050.0,97049.0,8e-07]
[1740161431888,0.60226081,97050.0,97049.0,8e-07]
[1740161432172,0.33727356,97050.0,97049.0,8e-07]
[1740161432325,0.50583256,97050.0,97049.0,8e-07]
[1740161432528,0.34427356,97050.0,97049.0,8e-07]
[1740161432744,0.49883256,97050.0,97049.0,8e-07]
[1740161432930,0.50583256,97050.0,97049.0,8e-07]
[1740161433319,0.3345,97050.0,97049.0,8e-07]
[1740161433527,0.3275,97050.0,97049.0,8e-07]
[1740161433723,0.3345,97050.0,97049.0,8e-07]
[1740161433925,0.3275,97050.0,97049.0,8e-07]
[1740161434125,0.007,97050.0,97049.0,8e-07]
[1740161434328,0.014,97050.0,97049.0,8e-07]
[1740161434532,0.08962933,97063.0,97062.0,0.23679587]
[1740161434956,0.154521,97074.0,97064.0,0.154536]
[1740161435118,0.30864869,97086.0,97076.0,0.08225587]
[1740161435488,0.154515,97078.0,97076.0,0.08225587]
[1740161436768,0.10264569,97077.0,97076.0,0.08225587]
[1740161436976,0.154538,97063.0,97062.0,0.07525587]
[1740161437825,0.10909301,97077.0,97062.0,0.07525587]
[1740161438026,0.154537,97064.0,97062.0,0.07525587]
[1740161438201,0.10909301,97077.0,97073.0,0.08225587]
[1740161438202,0.154521,97074.0,97073.0,0.08225587]
[1740161438812,0.154521,97074.0,97073.0,0.07525587]
[1740161439218,0.161521,97074.0,97073.0,0.07625587]
[1740161439829,0.007,97074.0,97073.0,0.07625587]
[1740161440262,0.014,97074.0,97073.0,0.07625587]
[1740161440461,0.1852853,97074.0,97073.0,0.07625587]
[1740161440686,0.0307643,97074.0,97073.0,0.07625587]
[1740161441821,0.02044756,97074.0,97073.0,0.23077787]
[1740161441969,0.02044756,97074.0,97073.0,0.07625587]
[1740161442388,0.01344756,97074.0,97073.0,0.07625587]
[1740161442587,0.02044756,97074.0,97073.0,0.07725587]
[1740161443188,0.01344756,97074.0,97073.0,0.07625587]
[1740161443393,0.01844756,97074.0,97073.0,0.07625587]
[1740161443780,0.16596856,97074.0,97073.0,0.07525587]
[1740161444007,0.154538,97063.0,97062.0,0.07525587]
[1740161445057,0.154538,97063.0,97049.0,8e-07]
[1740161445058,0.154559,97050.0,97049.0,8e-07]
[1740161445853,0.10264569,97062.0,97049.0,8e-07]
[1740161445854,0.02981067,97063.0,97049.0,8e-07]
[1740161446103,0.154541,97061.0,97060.0,0.08225587]
[1740161446514,0.154541,97061.0,97060.0,0.0655892]
[1740161447087,0.16098856,97061.0,97060.0,0.0655892]
[1740161447296,0.00644756,97061.0,97060.0,0.0655892]
[1740161448298,0.16798856,97061.0,97060.0,0.0655892]
[1740161448497,0.168541,97061.0,97060.0,0.0655892]
[1740161448967,0.161541,97061.0,97060.0,0.0655892]
[1740161449401,0.168541,97061.0,97060.0,0.0655892]
[1740161449600,0.17498856,97061.0,97060.0,0.0655892]
[1740161449718,0.18530624,97061.0,97060.0,0.0655892]
[1740161451448,0.17498856,97061.0,97060.0,0.0655892]
[1740161453336,0.17498856,97061.0,97049.0,8e-07]
[1740161453337,0.12309325,97061.0,97049.0,8e-07]
[1740161453549,0.206058,97060.0,97053.0,0.08225587]
[1740161453902,0.154553,97054.0,97053.0,0.08225587]
[1740161454080,0.154559,97050.0,97049.0,8e-07]
[1740161454646,0.33448219,97050.0,97049.0,8e-07]
[1740161454773,0.25720469,97050.0,97049.0,8e-07]
[1740161455346,0.41420469,97050.0,97049.0,8e-07]
[1740161455730,0.42065225,97050.0,97049.0,8e-07]
[1740161455908,0.42065225,97050.0,97007.0,7e-05]
[1740161455909,0.304588,97032.0,97007.0,7e-05]
[1740161456111,0.40723369,97032.0,97031.0,0.00053032]
[1740161457019,0.42400345,97032.0,97031.0,0.00053032]
[1740161457424,0.17135776,97032.0,97031.0,0.00053032]
[1740161457648,0.01676976,97032.0,97031.0,0.00053032]
[1740161458067,0.17135776,97032.0,97031.0,0.00053032]
[1740161458391,0.154588,97032.0,97031.0,0.00053032]
[1740161458598,0.168588,97032.0,97031.0,0.00053032]
[1740161458803,0.161588,97032.0,97031.0,0.00053032]
[1740161458971,0.007,97032.0,97031.0,0.00053032]
[1740161459196,0.014,97032.0,97031.0,0.15511932]
[1740161459521,0.007,97032.0,97031.0,0.00053032]
[1740161459732,0.161588,97032.0,97031.0,0.00053032]
[1740161460273,0.26423369,97032.0,97031.0,0.00053032]
[1740161460479,0.40723369,97032.0,97031.0,0.00053032]
[1740161460684,0.49983369,97032.0,97031.0,0.00053032]
[1740161460940,0.49983369,97032.0,97031.0,3.2e-07]
[1740161460941,0.58403916,97032.0,97031.0,3.2e-07]
[1740161461132,0.58403916,97032.0,96991.0,0.0004]
[1740161461133,0.304626,97008.0,96991.0,0.0004]
[1740161461306,0.154651,96992.0,96991.0,0.0004]
[1740161461529,0.25729669,96992.0,96991.0,0.0004]
[1740161461668,0.25729669,96992.0,96991.0,0.00053025]
[1740161461873,0.24466928,97020.0,96991.0,0.00053025]
[1740161462126,0.10264569,97006.0,96999.0,0.08225587]
[1740161462336,0.154639,97000.0,96999.0,0.08225587]
[1740161462675,0.206174,97005.0,96999.0,0.07525587]
[1740161462934,0.007,97008.0,96999.0,0.07525587]
[1740161463142,0.00645111,97006.0,96999.0,0.07525587]
[1740161464032,0.154631,97005.0,96999.0,0.07525587]
[1740161464413,0.007,97007.0,96999.0,0.07525587]
[1740161464660,0.154629,97006.0,96999.0,0.07525587]
[1740161464892,0.16163,97006.0,96999.0,0.07525587]
[1740161465142,0.00537854,97005.0,97002.0,0.154635]
[1740161465395,0.007,97005.0,97004.0,0.154632]
[1740161465639,0.007,97006.0,97005.0,0.154631]
[1740161465875,0.007,97006.0,97005.0,0.40727669]
[1740161466094,0.014,97006.0,97005.0,0.42181754]
[1740161466851,0.007,97006.0,97005.0,0.42181754]
[1740161467094,0.08962933,97022.0,97005.0,0.42181754]
[1740161467095,0.08962933,97022.0,97021.0,0.39440172]
[1740161467334,0.08962933,97022.0,97021.0,0.49704741]
[1740161467761,0.206055,97062.0,97060.0,0.08225587]
[1740161468222,0.2069043,97063.0,97060.0,0.08225587]
[1740161468433,0.00098101,97061.0,97060.0,0.08225587]
[1740161469166,0.00098101,97061.0,97060.0,0.18490156]
[1740161469167,0.00798101,97061.0,97060.0,0.18490156]
[1740161469391,0.00798101,97061.0,97060.0,0.19944241]
[1740161470001,0.00798101,97061.0,97060.0,0.34944241]
[1740161470179,0.01498101,97061.0,97060.0,0.34944241]
[1740161470589,0.00798101,97061.0,97060.0,0.34944241]
[1740161471293,0.00198101,97061.0,97060.0,5.20153141]
[1740161471763,0.00498101,97061.0,97060.0,5.22153141]
[1740161471999,0.0008511,97092.0,97060.0,5.22153141]
[1740161472000,0.0008511,97092.0,97091.0,0.16903485]
[1740161472228,0.0009814,97092.0,97091.0,0.42168054]
[1740161472460,0.0009814,97092.0,97091.0,0.46728054]
[1740161473243,0.0009814,97092.0,97091.0,0.48728054]
[1740161473861,0.0009814,97092.0,97091.0,0.46728054]
[1740161474079,0.0009814,97092.0,97091.0,0.31278654]
[1740161474490,0.0009814,97092.0,97091.0,0.46728054]
[1740161474855,0.0049814,97092.0,97091.0,0.46728054]
[1740161475404,0.0079814,97092.0,97091.0,0.46728054]
[1740161475845,0.0039814,97092.0,97081.0,0.08225587]
[1740161476056,0.154508,97082.0,97081.0,0.08225587]
[1740161476257,0.206004,97086.0,97081.0,0.08225587]
[1740161476459,0.154506,97084.0,97081.0,0.08225587]
[1740161476662,0.154508,97082.0,97081.0,0.08225587]
[1740161476790,0.154512,97080.0,97066.0,0.154533]
[1740161476998,0.0089814,97092.0,97060.0,0.08225587]
[1740161477368,0.0009814,97092.0,97064.0,0.206048]
[1740161477631,0.206003,97086.0,97066.0,0.206044]
[1740161477831,0.007,97084.0,97068.0,0.20604]
[1740161478102,0.007,97084.0,97060.0,0.08225587]
[1740161478103,0.007,97084.0,97069.0,0.154528]
[1740161478301,0.154526,97071.0,97070.0,0.08325587]
[1740161478508,0.206016,97080.0,97070.0,0.08325587]
[1740161478710,0.0069814,97092.0,97070.0,0.08225587]
[1740161478711,0.10264569,97090.0,97070.0,0.08225587]
[1740161478922,0.0079814,97092.0,97070.0,0.08325587]
[1740161478923,0.006,97086.0,97070.0,0.08325587]
[1740161479168,0.006,97086.0,97085.0,0.154503]
[1740161479365,0.0079814,97092.0,97085.0,0.154503]
[1740161479366,0.0079814,97092.0,97091.0,0.154494]
[1740161480128,0.0009814,97092.0,97091.0,0.154494]
[1740161480335,0.0009814,97092.0,97090.0,0.07525587]
[1740161480543,0.0009814,97092.0,97090.0,0.17790156]
[1740161480751,0.0009814,97092.0,97090.0,0.07525587]
[1740161480954,0.0009814,97092.0,97070.0,0.08225587]
[1740161481166,0.0079814,97092.0,97080.0,0.07525587]
[1740161481371,0.154507,97083.0,97080.0,0.07525587]
[1740161481550,0.205994,97090.0,97080.0,0.07525587]
[1740161481746,0.0079814,97092.0,97080.0,0.07525587]
[1740161481974,0.0149814,97092.0,97070.0,0.08225587]
[1740161482180,0.0149814,97092.0,97070.0,0.23678287]
[1740161482389,0.154503,97085.0,97070.0,0.08225587]
[1740161482591,0.205994,97090.0,97070.0,0.08225587]
[1740161482743,0.154514,97078.0,97070.0,0.08225587]
[1740161482948,0.0149814,97092.0,97070.0,0.08225587]
[1740161483166,0.154522,97074.0,97070.0,0.08225587]
[1740161483567,0.15452,97075.0,97070.0,0.08225587]
[1740161483775,0.154515,97078.0,97070.0,0.08225587]
[1740161483971,0.154516,97077.0,97070.0,0.08225587]
[1740161484479,0.154517,97077.0,97070.0,0.08325587]
[1740161484679,0.10264569,97089.0,97070.0,0.08325587]
[1740161484877,0.0009814,97092.0,97070.0,0.08225587]
[1740161485076,0.0009814,97092.0,97077.0,0.147516]
[1740161485077,0.007,97078.0,97077.0,0.147516]
[1740161485537,0.007,97078.0,97077.0,0.31205685]
[1740161485754,0.007,97078.0,97077.0,1.42918417]
[1740161485949,0.0009814,97092.0,97091.0,0.304494]
[1740161486145,0.0009814,97092.0,97091.0,0.31903485]
[1740161486296,0.0009814,97092.0,97091.0,0.26768054]
[1740161486519,0.0009814,97092.0,97091.0,0.11718654]
[1740161486912,0.0009814,97092.0,97083.0,0.23225587]
[1740161487122,0.0009814,97092.0,97083.0,0.08225587]
[1740161487345,0.007,97089.0,97083.0,0.08225587]
[1740161487751,0.0009814,97092.0,97083.0,0.08225587]
[1740161488176,0.0069814,97092.0,97083.0,0.08225587]
[1740161488382,0.0119814,97092.0,97083.0,0.08325587]
[1740161488575,0.0119814,97092.0,97083.0,0.08225587]
[1740161488781,0.0119814,97092.0,97084.0,0.10264569]
[1740161488992,0.0169814,97092.0,97085.0,0.01454085]
[1740161489195,0.0119814,97092.0,97086.0,0.10264569]
[1740161489415,0.0069814,97092.0,97086.0,0.10264569]
[1740161489615,0.0059814,97092.0,97086.0,0.10264569]
[1740161489826,0.0129814,97092.0,97086.0,0.10264569]
[1740161489977,0.0129814,97092.0,97083.0,0.08425587]
[1740161490172,0.154505,97084.0,97083.0,0.08425587]
[1740161490421,0.154505,97084.0,97083.0,0.001]
[1740161490593,0.33775069,97084.0,97083.0,0.001]
[1740161490793,0.33775069,97084.0,97050.0,0.08225587]
[1740161490794,0.0806,97084.0,97050.0,0.08225587]
[1740161490994,0.154517,97077.0,97050.0,0.08225587]
[1740161491200,0.154519,97075.0,97053.0,0.154553]
[1740161491510,0.154541,97061.0,97050.0,0.08225587]
[1740161491711,0.206019,97078.0,97037.0,0.23172]
[1740161491918,0.18462421,97077.0,97021.0,0.12365587]
[1740161492113,0.154585,97034.0,97021.0,0.12365587]
[1740161492421,0.37716623,97070.0,97031.0,0.08225587]
[1740161492422,0.15,97069.0,97031.0,0.08225587]
[1740161492580,0.10264569,97067.0,97031.0,0.08225587]
[1740161492771,0.15,97066.0,97031.0,0.08238568]
[1740161492971,0.154562,97049.0,97031.0,0.08238568]
[1740161493307,0.10264569,97065.0,97031.0,0.08238568]
[1740161493491,0.206058,97060.0,97031.0,0.08238568]
[1740161493747,0.10264569,97060.0,97031.0,0.08238568]
[1740161493995,0.154588,97032.0,97031.0,0.00012981]
[1740161494400,0.206092,97044.0,97031.0,0.00012981]
[1740161494647,0.206108,97037.0,97031.0,0.00012981]
[1740161494818,0.10264569,97045.0,97031.0,0.00012981]
[1740161494958,0.006,97032.0,97031.0,0.00012981]
[1740161495382,0.154588,97033.0,97031.0,0.00012981]
[1740161495653,0.206097,97042.0,97031.0,0.00012981]
[1740161495824,0.007,97044.0,97031.0,0.00012981]
[1740161496249,0.007,97044.0,97032.0,0.08225587]
[1740161496589,0.007,97037.0,97036.0,0.15458]
[1740161496978,0.007,97037.0,97032.0,0.08225587]
[1740161497203,0.37716623,97070.0,97032.0,0.08225587]
[1740161497379,0.007,97044.0,97032.0,0.07925587]
[1740161497605,0.206094,97043.0,97032.0,0.07925587]
[1740161497787,0.37716623,97060.0,97032.0,0.07925587]
[1740161497996,0.154588,97032.0,97031.0,0.00012981]
[1740161498210,0.006,97037.0,97031.0,0.00012981]
[1740161498409,0.154587,97033.0,97031.0,0.00012981]
[1740161498611,0.154587,97033.0,97032.0,0.001]
[1740161498812,0.005,97037.0,97032.0,0.001]
[1740161499030,0.154583,97035.0,97031.0,0.00012981]
[1740161499231,0.005,97037.0,97034.0,0.08225587]
[1740161499438,0.206039,97069.0,97034.0,0.08225587]
[1740161499648,0.00645007,97036.0,97034.0,0.08225587]
[1740161500089,0.00645007,97036.0,97035.0,0.15581964]
[1740161500292,0.00645007,97036.0,97035.0,0.41800604]
[1740161500494,0.00645007,97036.0,97035.0,0.41676954]
[1740161500698,0.007,97037.0,97036.0,0.16454085]
[1740161500926,0.3205,97070.0,97036.0,0.11718654]
[1740161501087,0.288109,97084.0,97054.0,0.08225587]
[1740161501291,0.15453,97069.0,97054.0,0.07825587]
[1740161501496,0.206011,97082.0,97064.0,0.08225587]
[1740161501697,0.0821,97084.0,97064.0,0.08225587]
[1740161502032,0.00644761,97081.0,97064.0,0.08225587]
[1740161502625,0.154521,97075.0,97064.0,0.08225587]
[1740161502856,0.007,97070.0,97064.0,0.08225587]
[1740161503313,0.154523,97073.0,97064.0,0.08225587]
[1740161503556,0.154522,97074.0,97064.0,0.08225587]
[1740161503791,0.154528,97070.0,97064.0,0.08325587]
[1740161504004,0.00644761,97074.0,97054.0,0.07825587]
[1740161504212,0.1090933,97074.0,97054.0,0.07825587]
[1740161504407,0.012,97070.0,97054.0,0.07825587]
[1740161504655,0.10264569,97069.0,97037.0,0.10264569]
[1740161504931,0.154567,97045.0,97044.0,0.00012981]
[1740161506744,0.161567,97045.0,97044.0,0.00012981]
[1740161506999,0.2706603,97045.0,97044.0,0.00012981]
[1740161507195,0.56847115,97045.0,97044.0,0.00012981]
[1740161507414,0.56147115,97045.0,97044.0,0.00012981]
[1740161507550,0.5029603,97045.0,97044.0,0.00012981]
[1740161507755,0.5089603,97045.0,97044.0,0.00012981]
[1740161508160,0.5029603,97045.0,97044.0,8.1e-07]
[1740161508410,1.73262292,97045.0,97044.0,8.1e-07]
[1740161508617,1.72562292,97045.0,97044.0,8.1e-07]
[1740161509046,1.73312531,97045.0,97044.0,8.1e-07]
[1740161509768,0.154639,97000.0,96991.0,0.0004]
[1740161510697,0.154651,96992.0,96991.0,0.0004]
[1740161511191,0.154651,96992.0,96991.0,0.00053025]
[1740161511852,0.160651,96992.0,96991.0,0.00053025]
[1740161512094,0.006,96992.0,96991.0,0.00053025]
[1740161512618,0.006,96992.0,96991.0,0.15518325]
[1740161512850,0.006,96992.0,96991.0,0.00053025]
[1740161513096,0.206175,97005.0,96991.0,0.00053025]
[1740161513327,0.206167,97009.0,96998.0,0.07525587]
[1740161513595,0.21655362,97009.0,96998.0,0.07525587]
[1740161513839,0.01038662,97009.0,96998.0,0.07525587]
[1740161514069,0.007,97005.0,96998.0,0.06825587]
[1740161514294,0.10264569,97004.0,96991.0,0.00053025]
[1740161514533,0.10264569,97004.0,96994.0,0.08225587]
[1740161514797,0.007,97005.0,96994.0,0.08225587]
[1740161514798,0.007,97005.0,97004.0,0.154632]
[1740161515024,0.007,97005.0,97004.0,0.23688787]
[1740161515251,0.0101785,97025.0,97024.0,0.1546]
[1740161515586,0.0482,97064.0,97024.0,0.1546]
[1740161515587,0.154561,97050.0,97030.0,0.23684687]
[1740161515794,0.206087,97047.0,97030.0,0.08225587]
[1740161516036,0.206087,97047.0,97030.0,0.07925587]
[1740161516241,0.154583,97036.0,97030.0,0.07925587]
[1740161516384,0.2443913,97031.0,97030.0,0.07925587]
[1740161516587,0.37716623,97050.0,97030.0,0.07225587]
[1740161516972,0.10264569,97049.0,97030.0,0.07225587]
[1740161517176,0.00013022,97050.0,97030.0,0.07225587]
[1740161517350,0.007,97031.0,97030.0,0.07225587]
[1740161517771,0.007,97031.0,97030.0,0.06925587]
[1740161517897,0.154589,97031.0,97030.0,0.06925587]
[1740161518103,0.154583,97035.0,97030.0,0.06925587]
[1740161518311,0.007,97049.0,97030.0,0.06925587]
[1740161518774,0.007,97049.0,97041.0,0.08225587]
[1740161519126,0.154569,97044.0,97041.0,0.08225587]
[1740161519326,0.154566,97046.0,97041.0,0.08225587]
[1740161519526,0.00013022,97050.0,97041.0,0.08225587]
[1740161519728,0.00013022,97050.0,97030.0,0.06925587]
[1740161519965,0.007,97031.0,97030.0,0.07025587]
[1740161520565,0.154573,97041.0,97030.0,0.06925587]
[1740161520769,0.154572,97042.0,97041.0,0.001]
[1740161521128,0.154572,97042.0,97030.0,0.07025587]
[1740161521375,0.00013022,97050.0,97040.0,0.08225587]
[1740161521575,0.00013022,97050.0,97030.0,0.06925587]
[1740161521576,0.160589,97031.0,97030.0,0.003]
[1740161521903,0.006,97031.0,97030.0,0.001]
[1740161522625,0.160589,97031.0,97030.0,0.001]
[1740161522944,0.26323469,97031.0,97030.0,0.001]
[1740161523629,0.10264569,97031.0,96994.0,0.23690387]
[1740161524013,0.37716623,97020.0,96994.0,0.08225587]
[1740161524242,0.37716623,97020.0,96973.0,0.0016994]
[1740161524243,0.10264569,97019.0,96973.0,0.0016994]
[1740161524470,0.154651,96992.0,96979.0,0.15]
[1740161524647,0.154651,96992.0,96973.0,0.0016994]
[1740161525116,0.01026992,96993.0,96978.0,0.154673]
[1740161525327,0.154648,96994.0,96991.0,0.00053025]
[1740161525532,0.00777516,97011.0,96992.0,0.08225587]
[1740161525728,0.154646,96996.0,96992.0,0.08225587]
[1740161526014,0.00777516,97011.0,96992.0,0.08225587]
[1740161526015,0.206157,97014.0,96992.0,0.08225587]
[1740161526345,0.01018234,97014.0,97005.0,0.08225587]
[1740161526547,0.16479934,97014.0,97005.0,0.08225587]
[1740161526707,0.0773,97033.0,97005.0,0.08225587]
[1740161526708,0.154618,97013.0,97005.0,0.08225587]
[1740161526908,0.10264569,97012.0,96992.0,0.08225587]
[1740161527109,0.15465,96994.0,96992.0,0.08225587]
[1740161527351,0.206162,97011.0,96992.0,0.08225587]
[1740161527534,0.206166,97009.0,96992.0,0.08225587]
[1740161527696,0.15465,96993.0,96991.0,0.00053025]
[1740161527912,0.154651,96992.0,96991.0,0.00053025]
[1740161529509,0.007,96994.0,96991.0,0.00053025]
[1740161529682,0.15465,96993.0,96992.0,0.08225587]
[1740161529928,0.007,96994.0,96991.0,0.00053025]
[1740161530128,0.154651,96992.0,96991.0,0.00053025]
[1740161530480,0.155651,96992.0,96991.0,0.00053025]
[1740161530686,0.25829669,96992.0,96991.0,0.00053025]
[1740161530848,0.25729669,96992.0,96991.0,0.00053025]
[1740161531053,0.26429669,96992.0,96991.0,0.00053025]
[1740161531638,0.25729669,96992.0,96991.0,0.00053025]
[1740161531836,0.26529669,96992.0,96991.0,0.00153025]
[1740161532247,0.27175022,96992.0,96991.0,0.00153025]
[1740161532977,0.27075022,96992.0,96991.0,0.00153025]
[1740161533182,0.27175022,96992.0,96991.0,0.00153025]
[1740161533581,0.27825724,96992.0,96991.0,0.00153025]
[1740161533790,0.27825724,96992.0,96991.0,0.00053025]
[1740161535465,0.27125724,96992.0,96991.0,0.00053025]
[1740161536074,0.27825724,96992.0,96991.0,0.00053025]
[1740161536229,0.28325724,96992.0,96991.0,0.00053025]
[1740161536436,0.27825724,96992.0,96991.0,0.00053025]
[1740161536821,0.28525724,96992.0,96991.0,0.00053025]
[1740161537278,0.29025724,96992.0,96991.0,0.00053025]
[1740161537670,0.27625724,96992.0,96991.0,0.00053025]
[1740161537851,0.29025724,96992.0,96991.0,0.00053025]
[1740161538452,0.28325724,96992.0,96991.0,0.00053025]
[1740161538650,0.29025724,96992.0,96991.0,0.00053025]
[1740161539326,0.28325724,96992.0,96991.0,0.00053025]
[1740161539535,0.27125724,96992.0,96991.0,0.00053025]
[1740161539735,0.27725724,96992.0,96991.0,0.00053025]
[1740161540143,0.26480371,96992.0,96991.0,0.00053025]
[1740161540316,0.26980371,96992.0,96991.0,0.00053025]
[1740161540530,0.27680371,96992.0,96991.0,0.00053025]
[1740161541077,0.26980371,96992.0,96991.0,0.00053025]
[1740161541285,0.27680371,96992.0,96991.0,0.00053025]
[1740161542574,0.34649942,96992.0,96991.0,0.00053025]
[1740161542979,0.27680371,96992.0,96991.0,0.00053025]
[1740161543280,0.57470371,96992.0,96991.0,2.5e-07]
[1740161543427,0.59624456,96992.0,96991.0,2.5e-07]
[1740161543611,1.78704456,96992.0,96991.0,2.5e-07]
[1740161543827,1.88969025,96992.0,96991.0,2.5e-07]
[1740161544046,1.77404456,96992.0,96991.0,2.5e-07]
[1740161544259,1.78704456,96992.0,96991.0,2.5e-07]
[1740161544460,0.02,96989.0,96951.0,0.08265587]
[1740161544687,0.154715,96952.0,96951.0,0.08309061]
[1740161545659,0.206275,96958.0,96951.0,0.08309061]
[1740161545858,0.154711,96955.0,96951.0,0.08309061]
[1740161546068,0.206275,96958.0,96951.0,0.08309061]
[1740161546069,0.154715,96952.0,96951.0,0.00083474]
[1740161546271,0.25736069,96952.0,96951.0,0.00083474]
[1740161547065,0.26436069,96952.0,96951.0,0.00083474]
[1740161547420,0.25736069,96952.0,96951.0,0.00083474]
[1740161547631,0.26336069,96952.0,96951.0,0.00083474]
[1740161548163,0.26436069,96952.0,96951.0,0.00083474]
[1740161548782,0.27185518,96952.0,96951.0,0.00083474]
[1740161548987,0.26485518,96952.0,96951.0,0.00083474]
[1740161549197,0.27185518,96952.0,96951.0,0.00083474]
[1740161549402,1.59965518,96952.0,96951.0,7.4e-07]
[1740161549610,1.59265518,96952.0,96951.0,7.4e-07]
[1740161549826,1.59965518,96952.0,96951.0,7.4e-07]
[1740161550276,0.154755,96927.0,96911.0,0.0004]
[1740161550472,0.154755,96927.0,96926.0,0.01476335]
[1740161550473,0.25740069,96927.0,96926.0,0.01476335]
[1740161550999,0.11042541,96927.0,96911.0,0.0004]
[1740161551198,0.11042541,96927.0,96911.0,0.00053011]
[1740161551199,0.154779,96912.0,96911.0,0.00053011]
[1740161551401,0.25742469,96912.0,96911.0,0.00053011]
[1740161552665,0.154779,96912.0,96911.0,0.00053011]
[1740161553044,0.25742469,96912.0,96911.0,0.00053011]
[1740161553243,0.26442469,96912.0,96911.0,0.00053011]
[1740161553422,0.25742469,96912.0,96911.0,0.00053011]
[1740161553931,0.26442469,96912.0,96911.0,0.00053011]
[1740161554244,0.25742469,96912.0,96911.0,0.00053011]
[1740161554400,0.27142469,96912.0,96911.0,0.00053011]
[1740161554762,0.26442469,96912.0,96911.0,0.00053011]